[Event "32nd NATO Championship 2022"]
[Site "Tartu"]
[Date "2022.06.27"]
[Round "1.1"]
[White "Csizmadia, Csaba"]
[Black "Stein, Robert"]
[Result "0-1"]
[ECO "D94"]
[WhiteElo "1875"]
[BlackElo "2365"]
[Annotator "TA"]
[PlyCount "72"]
[EventDate "2022.06.27"]
[EventType "swiss"]
[EventCountry "EST"]
[SourceTitle "playchess.com"]
[Source "ChessBase"]
[SourceQuality "1"]
[TimeControl "5400+30"]

{[%evp 24,72,-23,-21,-24,-22,-27,-3,6,0,0,-19,-29,-18,-20,-27,-45,-58,-47,-52,-42,-123,-123,-127,-125,-120,-118,-142,-134,-189,-184,-165,-182,-202,-197,-207,-199,-258,-259,-805,-791,-1194,-1197,-1143,-1161,-6298,-6137,-5381,-5261,-2145,-1666]} 1. d4 {[%emt 0:00:03]} Nf6 {[%emt 0:00:39]} 2. c4 {[%emt 0:00:09]} c5 {[%emt 0:00:58]} 3. e3 {[%emt 0:00:07]} g6 {[%emt 0:00:36]} 4. Nc3 {[%emt 0:00:08]} Bg7 {[%emt 0:01:35]} 5. Nf3 {[%emt 0:00:28]} O-O {[%emt 0:02:36]} 6. Be2 {[%emt 0:00:25]} cxd4 {[%emt 0:00:20]} 7. exd4 {[%emt 0:00:13]} d5 {[%emt 0:00:42]} 8. h3 {[%emt 0:00:16]} dxc4 {[%emt 0:02:16]} 9. Bxc4 {[%emt 0:00:13]} Nc6 {[%emt 0:03:35]} 10. a3 {[%emt 0:00:34]} Bf5 {[%emt 0:02:24]} 11. O-O {[%emt 1:33:24]} Ne4 {[%emt 0:08:53]} 12. Be3 {[%emt 0:00:00]} Rc8 {[%emt 0:03:43]} 13. Ba2 {[%emt 0:00:00]} Nxc3 {[%emt 0:03:20] D94: Grünfeld: 4 Nf3 Bg7 5 e3.} 14. bxc3 {[%emt 0:00:00]} Na5 {[%emt 0:00:04]} 15. Rc1 {[%emt 0:00:00] [#]} Qd6 $146 {[%emt 0:08:28] The position is equal.} ({Predecessor:} 15... Nc4 16. Qe2 Be6 17. Bg5 Re8 18. Rfe1 Qa5 19. Bxc4 Bxc4 20. Qd2 Bd5 21. c4 Qxd2 22. Nxd2 {½-½ (37) Ahlander,B (2390)-Haubro,M (2374) Gothenburg 2019}) 16. Qa4 {[%emt 0:00:00]} Qa6 {[%emt 0:04:15]} 17. Rfd1 {[%emt 0:00:00]} b5 {[%emt 0:05:52] Prevents c4.} 18. Qb4 {[%emt 0:00:00]} Nc4 {[%emt 0:01:56]} 19. Bxc4 {[%emt 0:00:00]} ({Of course not} 19. Qxe7 Nb2 20. Rd2 Bf6 $17) 19... Rxc4 {[%emt 0:00:12]} 20. Qb2 {[%emt 0:00:00]} ({Don't go for} 20. Qxe7 $2 Bf6 21. Qb4 Rxb4 $19) 20... Rfc8 $36 {[%emt 0:03:34][%mdl 2048] Black is more active.} 21. Nd2 {[%emt 0:00:00]} Ra4 {[%emt 0:03:16]} 22. Ra1 {[%emt 0:00:00] Black continues to play with concentration.} (22. Nb3 $15 Qc6 23. Re1 (23. Nc5 Rc4 $11)) 22... Qc6 $17 {[%emt 0:04:42]} 23. Rdc1 {[%emt 0:00:00] [#]} Be6 $1 {[%emt 0:01:59] Black is much more active.} 24. f3 {[%emt 0:00:00]} Bd5 {[%emt 0:00:57]} 25. Kf2 {[%emt 0:00:00]} a6 {[%emt 0:01:09]} 26. Nb3 {[%emt 0:07:30]} (26. Bf4 $17) 26... Bxb3 $19 {[%emt 0:02:35]} 27. Qxb3 {[%emt 0:00:00]} Rc4 {[%emt 0:01:35]} 28. Bd2 {[%emt 0:00:00]} e5 {[%emt 0:01:26]} 29. dxe5 {[%emt 0:00:00]} Bxe5 {[%emt 0:01:00]} 30. Rab1 {[%emt 0:00:00]} (30. Kf1 $142) 30... Qd6 {[%emt 0:05:01]} 31. Rc2 {[%emt 0:00:00] [#]} (31. Rd1) 31... Bd4+ $1 {[%emt 0:01:21][%mdl 512] Black is clearly winning.} 32. Kf1 {[%emt 0:00:00]} (32. cxd4 Rxc2) 32... Qh2 {[%emt 0:01:08]} 33. cxd4 {[%emt 0:00:00]} Rxc2 {[%emt 0:00:08]} 34. Rb2 {[%emt 0:00:00]} Qh1+ {[%emt 0:00:12]} 35. Kf2 {[%emt 0:00:00]} Qd1 {[%emt 0:00:21] ( -> ...Qxd2+)} 36. Rxc2 {[%emt 0:00:00]} Rxc2 {[%emt 0:00:17] Weighted Error Value: White=0.84/Black=0.01 (flawless)} 0-1

[Event "32nd NATO Championship 2022"]
[Site "Tartu"]
[Date "2022.06.27"]
[Round "1.2"]
[White "Pedersen, Finn"]
[Black "Heran-Boily, Samuel"]
[Result "1-0"]
[ECO "D03"]
[WhiteElo "2300"]
[BlackElo "1871"]
[Annotator "TA"]
[PlyCount "164"]
[EventDate "2022.06.27"]
[EventType "swiss"]
[EventCountry "EST"]
[SourceTitle "playchess.com"]
[Source "ChessBase"]
[SourceQuality "1"]
[TimeControl "5400+30"]

{[%evp 9,164,-17,-15,-21,0,-26,-27,-35,-41,-133,-165,-152,-80,-91,32,25,6,0,54,47,95,92,72,47,89,54,91,71,110,103,113,103,114,98,96,91,161,154,136,124,107,97,119,97,249,239,236,219,252,159,364,267,314,313,479,481,473,267,241,228,617,566,553,480,474,425,781,747,706,641,626,0,0,0,0,0,0,0,0,0,0,0,0,0,0,0,0,0,0,0,0,0,0,0,0,0,0,0,0,0,0,0,0,0,0,0,0,0,0,0,0,0,0,0,0,0,0,0,0,0,0,0,329,0,0,0,329,0,0,0,0,0,0,0,29985,0,0,0,0,0,8,0,0,0,0,0,29983,29984,29986,29987,29987,29988,29988,8,29989,29990,29990]} 1. Nf3 {[%emt 0:03:04]} d5 {[%emt 0:00:17]} 2. d4 {[%emt 0:00:07]} Nf6 {[%emt 0:00:07]} 3. Bg5 {[%emt 0:00:10]} Ne4 {[%emt 0:00:53]} 4. Bf4 {[%emt 0:00:16]} c5 {[%emt 0:00:29]} 5. c3 {[%emt 0:00:34]} cxd4 {[%emt 0:00:11]} 6. cxd4 {[%emt 0:01:01]} Qb6 {[%emt 0:00:11]} 7. Qc1 {[%emt 0:01:29]} Nc6 {[%emt 0:01:23]} 8. e3 {[%emt 0:00:18] Black has an edge.} f6 {[%emt 0:07:14]} 9. h3 {[%emt 0:04:30]} (9. Nc3 $15) 9... e5 $1 $17 {[%emt 0:06:19]} 10. dxe5 {[%emt 0:01:02]} Bb4+ {[%emt 0:00:41]} (10... g5 11. Bh2 $11) (10... fxe5 $142 11. Bxe5 Nxe5 12. Nxe5 Bb4+ 13. Nc3 O-O) 11. Nc3 {[%emt 0:00:38] Strongly threatening exf6.} Qa5 {[%emt 0:02:30]} ({Black should play} 11... fxe5 $1 $17 12. Nxe5 O-O) 12. a3 {[%emt 0:00:20]} Bxc3+ {[%emt 0:00:45]} 13. bxc3 {[%emt 0:00:27]} Nxc3 {[%emt 0:03:00]} (13... fxe5 $11 14. Nxe5 (14. Bxe5 O-O $11) 14... O-O) 14. Qd2 $14 {[%emt 0:00:33]} Ne4 {[%emt 0:19:54]} (14... O-O $14) 15. Qxa5 $16 {[%emt 0:00:23]} Nxa5 {[%emt 0:00:12]} 16. exf6 {[%emt 0:00:46]} gxf6 {[%emt 0:00:53]} 17. Bb5+ {[%emt 0:02:00]} Nc6 {[%emt 0:08:04]} 18. Nd2 {[%emt 0:03:12]} Bd7 {[%emt 0:07:26]} 19. Nxe4 {[%emt 0:02:04]} dxe4 {[%emt 0:00:11]} 20. O-O {[%emt 0:00:32]} Rg8 {[%emt 0:08:20]} 21. Bc4 {[%emt 0:01:49]} Rg7 {[%emt 0:00:15]} 22. Bd5 {[%emt 0:01:03]} f5 {[%emt 0:02:48]} (22... Bxh3 $16 23. Bxe4 Rd8) 23. Rab1 {[%emt 0:02:41]} b6 {[%emt 0:01:14]} 24. Rfc1 {[%emt 0:02:46] White is more active.} Rc8 {[%emt 0:00:16]} 25. Kh2 {[%emt 0:04:25]} Rg6 {[%emt 0:02:17]} 26. g4 $36 {[%emt 0:05:03][%mdl 2048] Keeping Black busy.} Rf6 $2 {[%emt 0:04:44]} (26... Ne7 $16 27. gxf5 Bxf5 28. Rxc8+ Nxc8) 27. g5 $1 $18 {[%emt 0:01:29]} Rg6 {[%emt 0:00:38]} 28. h4 $1 {[%emt 0:00:09][%cal Bh3h4,Bh4h5][%mdl 32]} Ne7 {[%emt 0:03:46]} 29. h5 {[%emt 0:03:04]} Rg7 $2 {[%emt 0:01:59]} (29... Rxc1 $16 30. Rxc1 Nxd5 31. hxg6 hxg6) 30. Bb7 {[%emt 0:03:40] A strong pair of Bishops.} Rd8 {[%emt 0:01:52]} 31. Rc7 {[%emt 0:10:39]} Rf7 {[%emt 0:00:09]} (31... Be6 $142 32. Ba6 Rf7 33. Bb5+ (33. Rxa7 Nd5 $16) 33... Kf8) 32. Rd1 {[%emt 0:04:13]} Be6 {[%emt 0:01:04]} 33. Rd6 {[%emt 0:03:21]} (33. Rxd8+ $142 Kxd8 34. Ba6) 33... Rxd6 {[%emt 0:01:22]} 34. Bxd6 {[%emt 0:00:11]} Nd5 {[%emt 0:00:40]} (34... Ng8 35. Kg3 (35. Bc6+ Kd8 $16) 35... Rxc7 36. Bxc7 Ne7) 35. Bc6+ {[%emt 0:03:22]} Kd8 {[%emt 0:00:10]} 36. Rxf7 {[%emt 0:01:22]} Bxf7 {[%emt 0:00:10][%mdl 4096] Endgame KBB-KBN} 37. Kg3 {[%emt 0:05:37]} (37. g6 hxg6 38. hxg6 Be6 $16) 37... Ne7 {[%emt 0:01:00]} (37... a6 $142 38. g6 hxg6) 38. Bxe7+ {[%emt 0:00:35]} Kxe7 {[%emt 0:00:05] KB-KB} 39. Kf4 {[%emt 0:00:35]} Ke6 {[%emt 0:01:38] [#]} 40. Bb7 $2 {[%emt 0:01:03]} (40. h6 $1 $18 a5 41. Bb7) 40... Bxh5 $11 {[%emt 0:00:17]} 41. Bc8+ {[%emt 0:00:08]} Kd5 {[%emt 0:00:13]} 42. Kxf5 {[%emt 0:01:21]} Bg6+ {[%emt 0:00:30]} 43. Kf6 {[%emt 0:05:33]} b5 {[%emt 0:01:23]} 44. Be6+ {[%emt 0:02:07]} Kd6 {[%emt 0:02:08]} 45. Bf5 {[%emt 0:05:02]} a5 $1 {[%emt 0:02:42]} (45... Bxf5 46. Kxf5 Kd5 47. Kf6 $16) 46. Bxg6 {[%emt 0:00:21]} hxg6 {[%emt 0:00:28]} 47. Kxg6 {[%emt 0:00:05]} b4 {[%emt 0:00:14]} 48. axb4 {[%emt 0:00:10]} axb4 {[%emt 0:00:40] K3P-KPP} 49. Kf6 {[%emt 0:01:46] aiming for g6.} (49. Kf5 b3 50. g6 Ke7 51. g7 Kf7 52. Kxe4 b2 53. Kf5 b1=Q+ 54. e4 Kxg7 55. f4 Qc2 56. Ke5 Qc5+ 57. Ke6 Qd4 58. Ke7 Qxe4+ 59. Kd6 Qxf4+ 60. Kc5 Kf6 61. Kc6 Ke6 62. Kb6 Qc4 63. Ka7 Kd6 64. Kb6 Qb3+ 65. Ka6 Kc6 66. Ka7 Qb7#) 49... b3 {[%emt 0:00:20]} 50. g6 {[%emt 0:00:04] Threatens to win with g7.} b2 {[%emt 0:00:04]} 51. g7 {[%emt 0:00:06]} b1=Q {[%emt 0:00:14]} 52. g8=Q {[%emt 0:00:06] Inhibits Qb3. KQ-KQ} Qb2+ {[%emt 0:04:03]} 53. Kg5 {[%emt 0:03:41]} Qxf2 {[%emt 0:00:53] ( -> ...Qg2+)} 54. Qd8+ {[%emt 0:00:22]} Ke6 {[%emt 0:01:51]} 55. Qb6+ {[%emt 0:00:19]} Ke7 {[%emt 0:00:54]} 56. Qb7+ {[%emt 0:00:16]} Kd6 {[%emt 0:01:07]} 57. Qb4+ {[%emt 0:00:29]} Kd7 {[%emt 0:00:11]} 58. Qd4+ {[%emt 0:00:33]} Kc7 {[%emt 0:00:34]} 59. Qe5+ {[%emt 0:00:23]} (59. Qxe4 $5 {[%cal Re4f4]} Qd2 60. Kf6 $16) 59... Kd7 {[%emt 0:00:22]} 60. Qd5+ {[%emt 0:01:30]} Kc7 {[%emt 0:00:12]} 61. Qxe4 {[%emt 0:00:20] Intending Qf4+ and mate.} Qg3+ {[%emt 0:01:13]} 62. Kf6 {[%emt 0:00:36]} Qd6+ {[%emt 0:00:52]} 63. Qe6 {[%emt 0:00:19]} Qd3 {[%emt 0:01:28]} 64. Qe5+ {[%emt 0:02:02]} Kd8 {[%emt 0:00:32]} 65. e4 {[%emt 0:06:36] And now Qe7+ would win.} (65. Qa5+ Ke8 $18) 65... Qf3+ $2 {[%emt 0:00:21][%mdl 8192] [#]} (65... Qa3 $11) 66. Qf5 $2 {[%emt 0:00:30]} (66. Ke6 $1 $18 {[%cal Re5b8]} Qg4+ 67. Kf7) 66... Qc3+ {[%emt 0:01:04]} 67. e5 {[%emt 0:01:27] Hoping for Qg5.} Qd4 $2 {[%emt 0:00:52][%mdl 8192]} (67... Qc6+ $11 {and Black has nothing to worry.} 68. Qe6 Qf3+ 69. Kg6 Qd3+ 70. Kh6 Qd2+ 71. Kg7 Qd4) 68. Kf7 $2 {[%emt 0:00:43]} (68. Qg5 $18) 68... Qa7+ {[%emt 0:00:12]} 69. Kg6 {[%emt 0:01:16] White threatens Qf8+ and mate.} Qe7 {[%emt 0:00:18] Prevents Qf8+.} 70. Qf6 {[%emt 0:00:30] Threatening mate with e6.} Ke8 {[%emt 0:00:19]} 71. Qc6+ {[%emt 0:00:13]} Kf8 $2 {[%emt 0:00:47][%mdl 8192]} (71... Kd8 $11) 72. Qf3+ $2 {[%emt 0:00:25]} (72. Qc8+ {mates} Qe8+ 73. Qxe8+ Kxe8 74. Kf6 Kd7 75. e6+ Ke8 76. e7 Kd7 77. Kf7) 72... Ke8 $1 {[%emt 0:00:40]} 73. Qf6 {[%emt 0:01:30]} ({Much less strong is} 73. Qc6+ $6 Kd8 $16) 73... Kd7 {[%emt 0:00:55]} 74. Qf7 {[%emt 0:00:42]} Kd8 {[%emt 0:00:21]} 75. e6 {[%emt 0:00:33] Qf6 would kill now.} Qe8 {[%emt 0:00:20]} 76. Kf6 {[%emt 0:00:35]} Qh8+ {[%emt 0:00:17]} 77. Kg5 {[%emt 0:00:46][%csl Ge6][%cal Rf7d7]} Qe8 $2 {[%emt 0:00:57][%mdl 8192] Inhibits Qd7+.} (77... Qe5+ $11 78. Kh6 Qh8+ 79. Kg5 Qe5+ 80. Kh6 Qh8+ 81. Qh7 (81. Kg5 Qe5+ $11) 81... Qxh7+ 82. Kxh7 Ke8) 78. Kg6 {[%emt 0:00:49]} Qe7 {[%emt 0:00:19]} 79. Qf6 {[%emt 0:03:21]} Ke8 {[%emt 0:01:03]} 80. Qh8+ {[%emt 0:02:22]} Qf8 {[%emt 0:03:13]} 81. Qxf8+ {[%emt 0:00:30]} Kxf8 82. Kf6 Ke8 {[%emt 0:01:00] Weighted Error Value: White=0.25 (precise) /Black=0.36} 1-0

[Event "32nd NATO Championship 2022"]
[Site "Tartu"]
[Date "2022.06.27"]
[Round "1.3"]
[White "Graham, Frazer"]
[Black "Pavlidis, Anastasios"]
[Result "0-1"]
[ECO "C41"]
[WhiteElo "1864"]
[BlackElo "2296"]
[Annotator "TA"]
[PlyCount "74"]
[EventDate "2022.06.27"]
[EventType "swiss"]
[EventCountry "EST"]
[SourceTitle "playchess.com"]
[Source "ChessBase"]
[SourceQuality "1"]
[TimeControl "5400+30"]

{[%evp 15,74,0,47,42,35,33,39,36,48,25,33,-31,-21,-21,-21,-14,0,-32,0,0,13,-9,11,21,19,0,43,-46,10,12,19,-16,0,-62,-64,-87,-91,-92,-92,-73,-82,-104,-107,-105,-66,-449,-450,-443,-430,-444,-443,-431,-434,-408,-407,-415,-199,-202,-193,-252,-225]} 1. e4 {[%emt 0:00:10]} d6 {[%emt 0:00:43]} 2. d4 {[%emt 0:00:56]} Nf6 {[%emt 0:00:11]} 3. Nc3 {[%emt 0:00:18]} Nbd7 {[%emt 0:00:15]} 4. Nf3 {[%emt 0:00:22]} e5 {[%emt 0:00:25]} 5. Bc4 {[%emt 0:02:27]} Be7 {[%emt 0:00:15]} 6. O-O {[%emt 0:02:58]} O-O {[%emt 0:00:13]} 7. Bb3 {[%emt 0:04:00] 7.a4 is setting a new trend.} c6 {[%emt 0:05:44]} 8. a4 {[%emt 0:01:17]} b6 {[%emt 0:00:44]} (8... exd4 $11 {is more appropriate.} 9. Nxd4 (9. Qxd4 Nc5 $11) 9... Nc5) 9. Qe2 {[%emt 0:08:20] C41: Philidor Defence.} Qc7 {[%emt 0:05:02]} 10. Rd1 {[%emt 0:06:43]} a6 {[%emt 0:02:46]} 11. Bg5 {[%emt 0:07:45] White is slightly better.} Rb8 {[%emt 0:04:35] [#]} 12. Nh4 $146 {[%emt 0:02:47] Black must now prevent Nf5.} ({Predecessor:} 12. h3 Re8 13. Qc4 Rf8 14. dxe5 dxe5 15. Bxf6 Nxf6 16. Nd5 Nxd5 17. exd5 Bc5 18. dxc6 Qxc6 19. Nxe5 {1-0 (55) Jirovsky,P (2325)-Hirn,O (2175) Germany 1996}) 12... exd4 {[%emt 0:03:12]} 13. Rxd4 {[%emt 0:02:45]} (13. Nf5 $14 dxc3 14. Nxe7+ Kh8 15. bxc3) 13... Nc5 $15 {[%emt 0:01:52]} 14. Rad1 {[%emt 0:05:03]} Bg4 {[%emt 0:07:06]} 15. Nf3 {[%emt 0:01:55]} Rbd8 {[%emt 0:07:42]} 16. Bf4 {[%emt 0:14:28]} Nh5 {[%emt 0:07:06]} 17. Be3 {[%emt 0:03:16]} g6 {[%emt 0:12:08]} 18. R4d2 {[%emt 0:08:23]} (18. h3 $5 {[%cal Rh3g4]} Be6 19. Bxe6 Nxe6 20. R4d2 $11 (20. Qxa6 Ra8 $11)) 18... Nxb3 {[%emt 0:03:49]} (18... b5 $5 {[%cal Rb5b4]}) 19. cxb3 {[%emt 0:00:11]} b5 {[%emt 0:00:12]} 20. b4 {[%emt 0:02:30]} Qc8 {[%emt 0:07:42]} 21. a5 {[%emt 0:02:31]} (21. h3 $14 Bxf3 22. Qxf3) 21... Rde8 {[%emt 0:08:02]} ({Black should try} 21... f5 $1 $15 22. h3 fxe4 23. hxg4 exf3 24. gxf3 Ng7) 22. Bh6 $11 {[%emt 0:01:55]} Ng7 {[%emt 0:01:37]} 23. Qe3 {[%emt 0:04:08]} f5 {[%emt 0:01:03] ...fxe4 is the strong threat.} 24. Bxg7 {[%emt 0:04:42]} ({Much weaker is} 24. Qd4 Rf7 25. Bxg7 Bxf3 26. gxf3 Rxg7 $17) (24. Rxd6 $11 Bxd6 25. Rxd6 Bxf3 26. gxf3) 24... Kxg7 $15 {[%emt 0:00:40]} 25. h3 {[%emt 0:00:18]} fxe4 {[%emt 0:09:38]} 26. hxg4 {[%emt 0:04:02]} exf3 {[%emt 0:00:09]} 27. gxf3 {[%emt 0:01:45]} d5 {[%emt 0:00:07][%cal Bd6d5,Bd5e4,Be4f3][%mdl 32]} 28. Kg2 {[%emt 0:00:28]} Bd6 {[%emt 0:01:44]} 29. Qd3 {[%emt 0:03:30]} Rf4 {[%emt 0:02:56][%cal Bf8f4,Bf4g4,Bg4e4,Be4b4][%mdl 32] [#] Threatens to win with ...Ref8.} 30. Ne4 $2 {[%emt 0:01:57][%mdl 8192] This costs White the game.} dxe4 {[%emt 0:00:37]} 31. Qxd6 {[%emt 0:00:06]} exf3+ {[%emt 0:00:21]} 32. Kh2 {[%emt 0:01:15]} Qxg4 {[%emt 0:01:23][%csl Gf3][%cal Rg4g2]} 33. Qd7+ {[%emt 0:00:18]} Kh6 {[%emt 0:00:18][%csl Gf3][%cal Rg4g2] [#]} 34. Qxg4 {[%emt 0:00:21]} Rxg4 {[%emt 0:00:09]} 35. Rd4 {[%emt 0:01:00]} Ree4 {[%emt 0:01:30]} (35... Rg2+ $142 36. Kh3 Rxf2) 36. Rxe4 $19 {[%emt 0:01:00]} Rxe4 {[%emt 0:00:05]} 37. Kg3 {[%emt 0:00:34]} (37. Rd6 $142) 37... Rxb4 {[%emt 0:00:11] Weighted Error Value: White=0.49/Black=0.25 (precise)} 0-1

[Event "32nd NATO Championship 2022"]
[Site "Tartu"]
[Date "2022.06.27"]
[Round "1.4"]
[White "Wang, Eigen"]
[Black "Korge, Kersti"]
[Result "1-0"]
[ECO "A57"]
[WhiteElo "2269"]
[BlackElo "1864"]
[Annotator "TA"]
[PlyCount "59"]
[EventDate "2022.06.27"]
[EventType "swiss"]
[EventCountry "EST"]
[SourceTitle "playchess.com"]
[Source "ChessBase"]
[SourceQuality "1"]
[TimeControl "5400+30"]

{[%evp 9,59,19,16,17,54,41,61,81,204,164,123,142,128,118,108,150,216,221,187,211,218,0,0,0,213,148,144,142,142,166,666,666,658,658,1092,1043,1383,1367,1506,1048,1047,1021,1035,1025,1635,1629,6420,6422,29987,1436,29993,1566]} 1. d4 {[%emt 0:00:15]} Nf6 {[%emt 0:00:06]} 2. Nf3 {[%emt 0:00:16]} g6 {[%emt 0:00:09]} 3. c4 {[%emt 0:00:16]} c5 {[%emt 0:00:47]} 4. d5 {[%emt 0:00:14]} b5 {[%emt 0:00:05]} 5. Qc2 {[%emt 0:00:52]} b4 {[%emt 0:02:05]} 6. a3 {[%emt 0:02:37]} bxa3 {[%emt 0:00:22]} 7. Rxa3 {[%emt 0:02:23]} d6 {[%emt 0:00:25]} 8. e4 {[%emt 0:01:04] White is slightly better.} Nxe4 {[%emt 0:01:14]} 9. Qxe4 $18 {[%emt 0:01:54] Qf4 is the strong threat.} Bf5 {[%emt 0:00:12] [#]} 10. Qf4 {[%emt 0:02:51]} Bxb1 {[%emt 0:00:46] [#]} 11. Ng5 $1 {[%emt 0:04:32]} f6 {[%emt 0:02:12]} 12. Ne6 {[%emt 0:00:13]} Qb6 {[%emt 0:00:16]} (12... Qc8 $16) 13. Bd3 {[%emt 0:08:43]} Bxd3 {[%emt 0:00:12]} 14. Rxd3 {[%emt 0:00:05]} Qa5+ {[%emt 0:05:20]} 15. Bd2 {[%emt 0:04:42][%mdl 1024] White has strong compensation.} Qa1+ {[%emt 0:00:25]} 16. Bc1 {[%emt 0:00:09]} Qa5+ {[%emt 0:00:08]} 17. Rc3 {[%emt 0:01:57] Hoping for 0-0.} Na6 {[%emt 0:04:12]} 18. O-O $36 {[%emt 0:04:13][%mdl 2048] Strongly threatening Ra3. White is on the roll.} Nc7 {[%emt 0:00:21]} 19. Qe3 {[%emt 0:01:58] Threatens to win with Ra3. White is much more active.} Kf7 $2 {[%emt 0:04:41]} (19... Nxe6 20. Qxe6 Rb8) 20. Ra3 {[%emt 0:03:26]} Qb6 {[%emt 0:00:16]} 21. Rb3 {[%emt 0:01:58]} Qa5 {[%emt 0:00:42]} 22. Bd2 {[%emt 0:01:37]} Nxd5 {[%emt 0:01:58]} 23. cxd5 {[%emt 0:00:08]} Qa4 {[%emt 0:00:17]} 24. Nc7 {[%emt 0:02:26]} Rd8 {[%emt 0:00:18]} 25. Qe6+ {[%emt 0:00:33]} Kg7 {[%emt 0:00:09]} 26. Rb7 {[%emt 0:00:30] Black must now prevent Nb5.} g5 {[%emt 0:03:58]} 27. Bc3 {[%emt 0:02:02]} Kg6 {[%emt 0:01:02]} 28. f4 {[%emt 0:01:32] White threatens fxg5 and mate.} Qd7 {[%emt 0:02:05]} 29. fxg5 {[%emt 0:00:38]} (29. f5+ $142 Kh6 30. Qf7 Qa4 31. Ne6 Qe4 32. Bxf6 Qe3+ 33. Kh1 exf6 34. Qxf6+ Kh5 35. Qxh8) 29... Kxg5 {[%emt 0:00:32]} 30. Qxd7 {[%emt 0:00:40] Weighted Error Value: White=0.22 (precise) /Black=0.99} (30. Qf7 $142 Qg4 31. Ne6+ Qxe6 32. Qxe6 Kh5 33. Qf5+ Kh6 34. Bd2+ Kg7 35. Qxf6+ Kg8 36. Qf7#) 1-0

[Event "32nd NATO Championship 2022"]
[Site "Tartu"]
[Date "2022.06.27"]
[Round "1.5"]
[White "Giedraitis, Mingaudas"]
[Black "Papasimakopoulos, Alexandros"]
[Result "0-1"]
[ECO "A46"]
[WhiteElo "1846"]
[BlackElo "2259"]
[Annotator "TA"]
[PlyCount "74"]
[EventDate "2022.06.27"]
[EventType "swiss"]
[EventCountry "EST"]
[SourceTitle "playchess.com"]
[Source "ChessBase"]
[SourceQuality "1"]
[TimeControl "5400+30"]

{[%evp 9,74,53,50,-19,-18,-17,-16,-45,-31,-35,-33,-77,-57,-120,-127,-147,-57,-176,-160,-166,-163,-160,-173,-225,-178,-173,-177,-176,-161,-176,-164,-168,-160,-253,-254,-243,-262,-232,-246,-245,-251,-259,-217,-280,-275,-268,-279,-470,-321,-451,-372,-522,-506,-880,-871,-1183,-1179,-1334,-1267,-1411,-1366,-1708,-1164,-1226,-922,-1500,-1186]} 1. d4 {[%emt 1:31:00]} Nf6 {[%emt 1:31:00]} 2. Bf4 {[%emt 0:00:30]} e6 {[%emt 0:00:30]} 3. e3 {[%emt 0:00:30]} c5 {[%emt 0:00:30]} 4. Nf3 {[%emt 0:00:30]} Qb6 {[%emt 0:00:30]} 5. Na3 {[%emt 0:00:30]} cxd4 {[%emt 0:00:30]} 6. exd4 {[%emt 0:00:30] A46: 1 d4 Nf6 2 Nf3 e6: Torre, London and Colle Systems.} ({Much weaker is} 6. Qxd4 Bc5 7. Qd1 (7. Qc3 $2 Bb4 $19) 7... Bxa3 8. bxa3 Nc6 $11) ({Better is} 6. Nb5 $1 $14 Na6 7. exd4 (7. Qxd4 Bc5 $14)) 6... Bxa3 $11 {[%emt 0:00:30]} 7. bxa3 {[%emt 0:00:30]} Qa5+ {[%emt 0:00:30]} 8. Bd2 {[%emt 0:00:30] The position is equal.} Qxa3 {[%emt 0:00:30]} 9. Bd3 {[%emt 0:00:30] [#]} b6 $146 {[%emt 0:00:30]} ({Predecessor:} 9... Nc6 10. O-O O-O 11. c3 d5 12. Qc2 h6 13. Rab1 Qd6 14. Rfe1 Nd7 15. Re2 b6 {0-1 (32) Simet,M (2181)-Zwardon,V (2466) Chess.com INT 2021}) 10. O-O {[%emt 0:00:30]} Ba6 $1 {[%emt 0:00:30]} 11. Ne5 {[%emt 0:00:30]} (11. Bc1 $1 $15 Qa4 12. Bg5) 11... Bxd3 $17 {[%emt 0:00:30]} 12. Qf3 {[%emt 0:00:30][%mdl 64] [#] Pin} d5 {[%emt 0:00:30]} 13. Nxd3 {[%emt 0:00:30]} (13. cxd3 $15 O-O 14. Rac1) 13... Nc6 $19 {[%emt 0:00:30][%cal Bb8c6,Bc6e7,Be7f5][%mdl 32]} 14. Qg3 {[%emt 0:00:30] [#]} O-O {[%emt 0:00:30]} 15. Bh6 {[%emt 0:00:30][%csl Gh6][%cal Rg3g7] [#]} Ne8 {[%emt 0:00:30]} 16. c3 {[%emt 0:00:30]} (16. Bc1 $142 Qa6 17. Bb2) 16... Ne7 {[%emt 0:00:30]} 17. Bd2 {[%emt 0:00:30]} Nf5 {[%emt 0:00:30]} 18. Qf3 {[%emt 0:00:30]} Nf6 {[%emt 0:00:30] aiming for ...Ne4.} 19. Rfc1 {[%emt 0:00:30]} Ne4 {[%emt 0:00:30]} 20. Be1 {[%emt 0:00:30]} Rfc8 $36 {[%emt 0:00:30][%cal Re4c3][%mdl 2048] Black is in control.} 21. Ne5 {[%emt 0:00:30]} (21. Nf4 $17) 21... f6 {[%emt 0:00:30]} 22. Ng4 {[%emt 0:00:30]} h5 {[%emt 0:00:30]} 23. Ne3 {[%emt 0:00:30] [#]} Nxd4 {[%emt 0:00:30][%mdl 512] Pair of Knights!} 24. Qxh5 {[%emt 0:00:30][%cal Oe3d5]} Nxc3 {[%emt 0:00:30]} 25. Bxc3 {[%emt 0:00:30]} Rxc3 {[%emt 0:00:30]} 26. Rxc3 {[%emt 0:00:30]} Qxc3 {[%emt 0:00:30]} 27. Rd1 {[%emt 0:00:30][%cal Oe3d5]} Nc6 {[%emt 0:00:30]} 28. g4 $2 {[%emt 0:00:30]} (28. Qe2 {was called for.}) 28... Qe5 {[%emt 0:00:30]} 29. Qg6 {[%emt 0:00:30]} (29. Qxe5 {was necessary.} fxe5 30. Rc1) 29... d4 {[%emt 0:00:30]} 30. Nc4 {[%emt 0:00:30]} (30. Ng2 {is a better defense.}) 30... Qe2 {[%emt 0:00:30][%csl LRa2,LRc4,LRd1] Black is clearly winning.} 31. Rc1 {[%emt 0:00:30]} (31. Qd3 $142 Qxg4+ 32. Kf1) 31... Ne7 {[%emt 0:00:30]} 32. Qh5 {[%emt 0:00:30]} Rc8 {[%emt 0:00:30] Threatens to win with ...Nd5.} 33. Kg2 {[%emt 0:00:30]} g6 {[%emt 0:00:30]} 34. Qb5 {[%emt 0:00:30]} Qxg4+ {[%emt 0:00:30]} 35. Kf1 {[%emt 0:00:30]} Qh3+ {[%emt 0:00:30]} 36. Kg1 {[%emt 0:00:30]} Kf8 {[%emt 0:00:30]} 37. Re1 {[%emt 0:00:30]} Rc5 {[%emt 0:00:30] Weighted Error Value: White=0.92/Black=0.30} 0-1